[Event "*** Titled Tuesday Blitz"]
[Site "Chess.com"]
[Date "2020.05.05"]
[Round "5"]
[White "Shushik"]
[Black "sm_sharon"]
[Result "1/2-1/2"]
[WhiteElo "2032"]
[BlackElo "2195"]
[TimeControl "180+1"]
[EndTime "10:57:23 PDT"]
[Termination "Game drawn - insufficient material"]

1. e4 {[%clk 0:02:47.4]} 1... g6 {[%clk 0:02:58.8]} 2. d4 {[%clk 0:02:47.3]}
2... Bg7 {[%clk 0:02:59.7]} 3. Nc3 {[%clk 0:02:47.6]} 3... d6 {[%clk 0:03:00.6]}
4. f4 {[%clk 0:02:47.8]} 4... a6 {[%clk 0:03:01.5]} 5. Nf3 {[%clk 0:02:47.7]}
5... b5 {[%clk 0:03:01.8]} 6. a3 {[%clk 0:02:47.9]} 6... Nd7 {[%clk 0:02:58.1]}
7. Be2 {[%clk 0:02:46.8]} 7... Bb7 {[%clk 0:02:58.4]} 8. O-O {[%clk 0:02:46.2]}
8... c5 {[%clk 0:02:57.9]} 9. Be3 {[%clk 0:02:44.6]} 9... Ngf6 {[%clk
0:02:57.3]} 10. e5 {[%clk 0:02:43.2]} 10... Ng4 {[%clk 0:02:57.1]} 11. Bf2
{[%clk 0:02:29.6]} 11... Nxf2 {[%clk 0:02:55]} 12. Rxf2 {[%clk 0:02:29.1]} 12...
cxd4 {[%clk 0:02:55]} 13. Qxd4 {[%clk 0:02:26]} 13... dxe5 {[%clk 0:02:52.5]}
14. fxe5 {[%clk 0:02:25.1]} 14... Nxe5 {[%clk 0:02:49.3]} 15. Qf4 {[%clk
0:02:09.2]} 15... Nxf3+ {[%clk 0:02:46.3]} 16. Bxf3 {[%clk 0:02:08.1]} 16...
Bxf3 {[%clk 0:02:44.7]} 17. Qxf3 {[%clk 0:02:07.3]} 17... O-O {[%clk 0:02:41.8]}
18. Rd1 {[%clk 0:01:54.6]} 18... Bd4 {[%clk 0:02:38.4]} 19. Kh1 {[%clk
0:01:53.6]} 19... Qb6 {[%clk 0:02:33.3]} 20. Nd5 {[%clk 0:01:45.6]} 20... Qa7
{[%clk 0:02:18.3]} 21. Nxe7+ {[%clk 0:00:58.5]} 21... Qxe7 {[%clk 0:02:16.7]}
22. Rxd4 {[%clk 0:00:57.5]} 22... Rad8 {[%clk 0:02:16.4]} 23. Rxd8 {[%clk
0:00:46.7]} 23... Rxd8 {[%clk 0:02:14.3]} 24. g3 {[%clk 0:00:37.7]} 24... Rd7
{[%clk 0:02:07.4]} 25. Re2 {[%clk 0:00:32.5]} 25... Rd1+ {[%clk 0:01:40.5]} 26.
Kg2 {[%clk 0:00:31.8]} 26... Qd8 {[%clk 0:01:40.1]} 27. Rf2 {[%clk 0:00:23.5]}
27... Qd7 {[%clk 0:01:36.8]} 28. Qf4 {[%clk 0:00:12.4]} 28... Qd5+ {[%clk
0:01:35.1]} 29. Qf3 {[%clk 0:00:12.2]} 29... Qxf3+ {[%clk 0:01:28.5]} 30. Kxf3
{[%clk 0:00:12.4]} 30... Rb1 {[%clk 0:01:28.9]} 31. c3 {[%clk 0:00:12]} 31...
Kg7 {[%clk 0:01:28.1]} 32. Ke4 {[%clk 0:00:11.6]} 32... h5 {[%clk 0:01:27.9]}
33. Kd5 {[%clk 0:00:11.4]} 33... Re1 {[%clk 0:01:26.9]} 34. Kc5 {[%clk 0:00:11]}
34... f5 {[%clk 0:01:26]} 35. Kb6 {[%clk 0:00:10.6]} 35... Re6+ {[%clk
0:01:26.1]} 36. Ka5 {[%clk 0:00:10.5]} 36... Kf6 {[%clk 0:01:26.2]} 37. a4
{[%clk 0:00:10.1]} 37... bxa4 {[%clk 0:01:25.7]} 38. Kxa4 {[%clk 0:00:10.2]}
38... Kg5 {[%clk 0:01:26.6]} 39. c4 {[%clk 0:00:09.6]} 39... Kg4 {[%clk
0:01:26.9]} 40. c5 {[%clk 0:00:06.6]} 40... g5 {[%clk 0:01:26.5]} 41. b4 {[%clk
0:00:06.5]} 41... f4 {[%clk 0:01:26.2]} 42. gxf4 {[%clk 0:00:05.9]} 42... gxf4
{[%clk 0:01:27.1]} 43. b5 {[%clk 0:00:05.8]} 43... f3 {[%clk 0:01:27.3]} 44. c6
{[%clk 0:00:05.2]} 44... axb5+ {[%clk 0:01:27.2]} 45. Kxb5 {[%clk 0:00:05.3]}
45... Re2 {[%clk 0:01:27.3]} 46. Rf1 {[%clk 0:00:04.6]} 46... Rb2+ {[%clk
0:01:26.5]} 47. Kc5 {[%clk 0:00:04.5]} 47... Rxh2 {[%clk 0:01:26.5]} 48. c7
{[%clk 0:00:04.1]} 48... Rc2+ {[%clk 0:01:26.6]} 49. Kd6 {[%clk 0:00:04.1]}
49... f2 {[%clk 0:01:26.8]} 50. Rxf2 {[%clk 0:00:03.4]} 50... Rxf2 {[%clk
0:01:26.5]} 51. c8=Q+ {[%clk 0:00:03.3]} 51... Kg3 {[%clk 0:01:25.9]} 52. Qc3+
{[%clk 0:00:03.6]} 52... Rf3 {[%clk 0:01:25.4]} 53. Qe1+ {[%clk 0:00:04]} 53...
Rf2 {[%clk 0:01:25]} 54. Qe3+ {[%clk 0:00:03.7]} 54... Rf3 {[%clk 0:01:24.8]}
55. Qg1+ {[%clk 0:00:04]} 55... Kh3 {[%clk 0:01:23.2]} 56. Qh1+ {[%clk
0:00:04.1]} 56... Kg3 {[%clk 0:01:23]} 57. Qxh5 {[%clk 0:00:03.8]} 57... Rd3+
{[%clk 0:01:23]} 58. Ke6 {[%clk 0:00:03.4]} 58... Re3+ {[%clk 0:01:22.9]} 59.
Kd5 {[%clk 0:00:03.4]} 59... Rf3 {[%clk 0:01:22.5]} 60. Ke4 {[%clk 0:00:03.5]}
60... Rf4+ {[%clk 0:01:22.2]} 61. Ke3 {[%clk 0:00:03.9]} 61... Rg4 {[%clk
0:01:21.6]} 62. Qf5 {[%clk 0:00:03.9]} 62... Kh4 {[%clk 0:01:20.8]} 63. Qf3
{[%clk 0:00:03.6]} 63... Rg3 {[%clk 0:01:20.5]} 64. Qxg3+ {[%clk 0:00:03.9]}
64... Kxg3 {[%clk 0:01:21.4]} 1/2-1/2

[Event "*** Titled Tuesday Blitz"]
[Site "Chess.com"]
[Date "2020.05.05"]
[Round "5"]
[White "tioloko"]
[Black "AryanTari"]
[Result "0-1"]
[WhiteElo "2623"]
[BlackElo "2876"]
[TimeControl "180+1"]
[EndTime "10:57:25 PDT"]
[Termination "AryanTari won by resignation"]

1. e4 {[%clk 0:03:00.9]} 1... e5 {[%clk 0:02:26.4]} 2. Nf3 {[%clk 0:02:58.6]}
2... Nc6 {[%clk 0:02:21.4]} 3. Bb5 {[%clk 0:02:58.8]} 3... a6 {[%clk 0:02:20.7]}
4. Ba4 {[%clk 0:02:59.3]} 4... Nf6 {[%clk 0:02:20.7]} 5. O-O {[%clk 0:02:59.8]}
5... Be7 {[%clk 0:02:18.7]} 6. Re1 {[%clk 0:03:00]} 6... b5 {[%clk 0:02:15]} 7.
Bb3 {[%clk 0:02:59.8]} 7... d6 {[%clk 0:02:15.6]} 8. c3 {[%clk 0:02:57.4]} 8...
O-O {[%clk 0:02:14.3]} 9. h3 {[%clk 0:02:57.8]} 9... Bb7 {[%clk 0:02:12]} 10. d4
{[%clk 0:02:57.5]} 10... Nd7 {[%clk 0:02:12.4]} 11. Nbd2 {[%clk 0:02:55]} 11...
exd4 {[%clk 0:02:11.7]} 12. cxd4 {[%clk 0:02:55.9]} 12... Bf6 {[%clk 0:02:12.1]}
13. Nf1 {[%clk 0:02:55.8]} 13... Na5 {[%clk 0:02:06.3]} 14. Bc2 {[%clk
0:02:55.5]} 14... Re8 {[%clk 0:02:06.6]} 15. Ng3 {[%clk 0:02:54.4]} 15... g6
{[%clk 0:01:58.2]} 16. Rb1 {[%clk 0:02:53.3]} 16... c5 {[%clk 0:01:57.6]} 17. d5
{[%clk 0:02:52.9]} 17... Nc4 {[%clk 0:01:58.2]} 18. b3 {[%clk 0:02:52.4]} 18...
Ncb6 {[%clk 0:01:53.7]} 19. Nh2 {[%clk 0:02:52.9]} 19... Bc3 {[%clk 0:01:48.8]}
20. Bd2 {[%clk 0:02:50.5]} 20... Bxd2 {[%clk 0:01:35.1]} 21. Qxd2 {[%clk
0:02:51.4]} 21... h5 {[%clk 0:01:35.4]} 22. Qh6 {[%clk 0:01:58.3]} 22... Qf6
{[%clk 0:01:32.5]} 23. Nf3 {[%clk 0:01:57.7]} 23... Qg7 {[%clk 0:01:14.7]} 24.
Qd2 {[%clk 0:01:55.8]} 24... a5 {[%clk 0:01:10.2]} 25. Nh4 {[%clk 0:01:49.3]}
25... Qf6 {[%clk 0:01:06.2]} 26. Nf3 {[%clk 0:01:34.5]} 26... a4 {[%clk
0:01:06.6]} 27. bxa4 {[%clk 0:01:30]} 27... b4 {[%clk 0:01:06.9]} 28. Qh6 {[%clk
0:00:44.7]} 28... Qg7 {[%clk 0:01:03.1]} 29. Qf4 {[%clk 0:00:42.7]} 29... Qf6
{[%clk 0:01:00.9]} 30. Qh6 {[%clk 0:00:42.4]} 30... Nxa4 {[%clk 0:00:58]} 31. e5
{[%clk 0:00:34.6]} 31... Qg7 {[%clk 0:00:35.5]} 32. Qxg7+ {[%clk 0:00:32.9]}
32... Kxg7 {[%clk 0:00:36.4]} 33. Bxa4 {[%clk 0:00:33.7]} 33... Rxa4 {[%clk
0:00:36.1]} 34. exd6 {[%clk 0:00:34.6]} 34... Rxe1+ {[%clk 0:00:35.6]} 35. Rxe1
{[%clk 0:00:34]} 35... Rxa2 {[%clk 0:00:35.8]} 36. Re7 {[%clk 0:00:29.3]} 36...
b3 {[%clk 0:00:26.8]} 37. Rxd7 {[%clk 0:00:29.2]} 37... Bxd5 {[%clk 0:00:27.2]}
38. Nf1 {[%clk 0:00:25.1]} 38... Ra1 {[%clk 0:00:24.1]} 39. Nd2 {[%clk
0:00:17.7]} 39... c4 {[%clk 0:00:24.2]} 40. Rc7 {[%clk 0:00:17.2]} 40... Be6
{[%clk 0:00:21.4]} 41. Nxc4 {[%clk 0:00:15.8]} 41... Bxc4 {[%clk 0:00:20.8]} 42.
Rxc4 {[%clk 0:00:15.3]} 42... b2 {[%clk 0:00:21.4]} 43. d7 {[%clk 0:00:12.1]}
43... b1=Q {[%clk 0:00:17]} 44. d8=Q {[%clk 0:00:12.3]} 44... Qxf1+ {[%clk
0:00:17.7]} 45. Kh2 {[%clk 0:00:12.5]} 45... Qxc4 {[%clk 0:00:18.5]} 46. Qb8
{[%clk 0:00:10.6]} 46... Qd4 {[%clk 0:00:17.8]} 0-1

[Event "*** Titled Tuesday Blitz"]
[Site "Chess.com"]
[Date "2020.05.05"]
[Round "5"]
[White "anon132639"]
[Black "Msb2"]
[Result "1-0"]
[WhiteElo "2645"]
[BlackElo "2903"]
[TimeControl "180+1"]
[EndTime "10:57:26 PDT"]
[Termination "anon132639 won by checkmate"]

1. d4 {[%clk 0:03:00.9]} 1... Nf6 {[%clk 0:03:00.1]} 2. Nf3 {[%clk 0:03:01]}
2... d5 {[%clk 0:03:00.4]} 3. Bf4 {[%clk 0:03:00.8]} 3... c5 {[%clk 0:03:01]} 4.
e3 {[%clk 0:03:01]} 4... Nc6 {[%clk 0:03:01.5]} 5. Nbd2 {[%clk 0:03:01.6]} 5...
cxd4 {[%clk 0:03:01.9]} 6. exd4 {[%clk 0:03:02.5]} 6... Qb6 {[%clk 0:03:02.6]}
7. Nb3 {[%clk 0:03:02.4]} 7... Bf5 {[%clk 0:03:03.3]} 8. c3 {[%clk 0:02:55.3]}
8... e6 {[%clk 0:03:03.2]} 9. Bd3 {[%clk 0:02:55.2]} 9... Bxd3 {[%clk
0:03:02.6]} 10. Qxd3 {[%clk 0:02:56.1]} 10... a5 {[%clk 0:03:03.5]} 11. Rb1
{[%clk 0:02:55.6]} 11... a4 {[%clk 0:03:03.6]} 12. Nbd2 {[%clk 0:02:49]} 12...
Be7 {[%clk 0:03:03.8]} 13. O-O {[%clk 0:02:49.4]} 13... O-O {[%clk 0:03:03.1]}
14. h3 {[%clk 0:02:40.6]} 14... Qa6 {[%clk 0:03:02.7]} 15. Ne1 {[%clk 0:02:32]}
15... a3 {[%clk 0:02:53.9]} 16. b4 {[%clk 0:02:24.4]} 16... Qxd3 {[%clk
0:02:47.1]} 17. Nxd3 {[%clk 0:02:25.3]} 17... b6 {[%clk 0:02:44.3]} 18. Rfc1
{[%clk 0:02:12.1]} 18... Rfc8 {[%clk 0:02:40.8]} 19. f3 {[%clk 0:02:10]} 19...
Nd7 {[%clk 0:02:39.2]} 20. Rb3 {[%clk 0:02:05.5]} 20... f6 {[%clk 0:02:34.8]}
21. Re1 {[%clk 0:02:00.4]} 21... Kf7 {[%clk 0:02:34.9]} 22. Nb1 {[%clk
0:01:57.7]} 22... Bf8 {[%clk 0:02:31.6]} 23. Re2 {[%clk 0:01:44.1]} 23... Ra7
{[%clk 0:02:07.3]} 24. Rxa3 {[%clk 0:01:40.4]} 24... Rca8 {[%clk 0:02:01.8]} 25.
Rxa7 {[%clk 0:01:39.5]} 25... Rxa7 {[%clk 0:02:02.7]} 26. a3 {[%clk 0:01:38.1]}
26... Ra8 {[%clk 0:01:56.9]} 27. Kf1 {[%clk 0:01:37.8]} 27... Na7 {[%clk
0:01:56.4]} 28. Nb2 {[%clk 0:01:18.3]} 28... Nc6 {[%clk 0:01:50.7]} 29. Nd3
{[%clk 0:01:15.6]} 29... b5 {[%clk 0:01:46.4]} 30. Ke1 {[%clk 0:01:11.2]} 30...
Nb6 {[%clk 0:01:46.6]} 31. Nb2 {[%clk 0:01:09.3]} 31... Nc4 {[%clk 0:01:33.9]}
32. Nxc4 {[%clk 0:01:08.4]} 32... dxc4 {[%clk 0:01:34.8]} 33. Kd1 {[%clk
0:01:06.5]} 33... Ne7 {[%clk 0:01:34]} 34. Kc2 {[%clk 0:01:05.6]} 34... Nd5
{[%clk 0:01:32.6]} 35. Bg3 {[%clk 0:01:02.6]} 35... g5 {[%clk 0:01:32.1]} 36.
Kb2 {[%clk 0:01:01.1]} 36... h5 {[%clk 0:01:31.6]} 37. Nd2 {[%clk 0:00:58.4]}
37... f5 {[%clk 0:01:30.1]} 38. Be5 {[%clk 0:00:57.2]} 38... Be7 {[%clk
0:01:29.4]} 39. Nf1 {[%clk 0:00:54.8]} 39... f4 {[%clk 0:01:24.3]} 40. g3 {[%clk
0:00:35]} 40... Rg8 {[%clk 0:01:21.7]} 41. Nd2 {[%clk 0:00:20.3]} 41... Bf6
{[%clk 0:01:21.1]} 42. Bxf6 {[%clk 0:00:20.1]} 42... Kxf6 {[%clk 0:01:22]} 43.
Ne4+ {[%clk 0:00:20.4]} 43... Ke7 {[%clk 0:01:22.4]} 44. g4 {[%clk 0:00:12.6]}
44... hxg4 {[%clk 0:01:22.3]} 45. hxg4 {[%clk 0:00:13.5]} 45... Rh8 {[%clk
0:01:23.2]} 46. Nxg5 {[%clk 0:00:13.1]} 46... Ne3 {[%clk 0:01:23.8]} 47. a4
{[%clk 0:00:09.2]} 47... bxa4 {[%clk 0:01:21.4]} 48. Ka3 {[%clk 0:00:09.8]}
48... Kd7 {[%clk 0:01:20.8]} 49. Ne4 {[%clk 0:00:08.1]} 49... Kc6 {[%clk
0:01:19.7]} 50. Nc5 {[%clk 0:00:07.1]} 50... Kb5 {[%clk 0:01:20.1]} 51. Nxe6
{[%clk 0:00:07.1]} 51... Rh1 {[%clk 0:01:19.3]} 52. Nxf4 {[%clk 0:00:06.6]}
52... Nd1 {[%clk 0:01:13]} 53. Re5+ {[%clk 0:00:05.9]} 53... Ka6 {[%clk
0:01:12.6]} 54. Nd5 {[%clk 0:00:06.3]} 54... Rh2 {[%clk 0:01:12]} 55. Re6+
{[%clk 0:00:05.8]} 55... Kb7 {[%clk 0:01:10.4]} 56. Kxa4 {[%clk 0:00:06.3]}
56... Rf2 {[%clk 0:01:09]} 57. f4 {[%clk 0:00:05.8]} 57... Rg2 {[%clk
0:01:08.1]} 58. g5 {[%clk 0:00:05.7]} 58... Nf2 {[%clk 0:01:08.2]} 59. Kb5
{[%clk 0:00:05.6]} 59... Nd3 {[%clk 0:01:08.3]} 60. Kxc4 {[%clk 0:00:05.6]}
60... Nb2+ {[%clk 0:01:08.3]} 61. Kb5 {[%clk 0:00:05.7]} 61... Kc8 {[%clk
0:01:07.5]} 62. Re7 {[%clk 0:00:05.8]} 62... Kd8 {[%clk 0:01:08.4]} 63. c4
{[%clk 0:00:06.2]} 63... Nd1 {[%clk 0:01:09.3]} 64. Rf7 {[%clk 0:00:05.7]} 64...
Rg3 {[%clk 0:01:10.2]} 65. c5 {[%clk 0:00:04.8]} 65... Nb2 {[%clk 0:01:11.1]}
66. Kc6 {[%clk 0:00:05.1]} 66... Ra3 {[%clk 0:01:11]} 67. Rf8# {[%clk
0:00:05.2]} 1-0

[Event "*** Titled Tuesday Blitz"]
[Site "Chess.com"]
[Date "2020.05.05"]
[Round "5"]
[White "DanielMieles1985"]
[Black "KaterinaMiroshnik"]
[Result "0-1"]
[WhiteElo "2637"]
[BlackElo "2445"]
[TimeControl "180+1"]
[EndTime "10:57:26 PDT"]
[Termination "KaterinaMiroshnik won on time"]

1. c4 {[%clk 0:02:59.3]} 1... d6 {[%clk 0:02:59.1]} 2. Nc3 {[%clk 0:02:56.3]}
2... Nd7 {[%clk 0:02:59.4]} 3. g3 {[%clk 0:02:54.2]} 3... e5 {[%clk 0:02:59.7]}
4. Bg2 {[%clk 0:02:48.1]} 4... Ngf6 {[%clk 0:03:00.6]} 5. e3 {[%clk 0:02:39.5]}
5... c6 {[%clk 0:03:00.5]} 6. Nge2 {[%clk 0:02:30.8]} 6... Be7 {[%clk
0:03:00.4]} 7. O-O {[%clk 0:02:30.6]} 7... O-O {[%clk 0:03:00.8]} 8. Rb1 {[%clk
0:02:22.4]} 8... a5 {[%clk 0:02:57]} 9. a3 {[%clk 0:02:16.1]} 9... Nc5 {[%clk
0:02:51.3]} 10. b4 {[%clk 0:02:07.4]} 10... axb4 {[%clk 0:02:51.3]} 11. axb4
{[%clk 0:02:04.5]} 11... Nd3 {[%clk 0:02:51.7]} 12. Qc2 {[%clk 0:01:55.6]} 12...
Nxc1 {[%clk 0:02:44.4]} 13. Rfxc1 {[%clk 0:01:56.3]} 13... Be6 {[%clk
0:02:44.2]} 14. d3 {[%clk 0:01:42.7]} 14... Nd7 {[%clk 0:02:42]} 15. b5 {[%clk
0:01:40.6]} 15... Qc7 {[%clk 0:02:40.3]} 16. h3 {[%clk 0:01:22.4]} 16... f5
{[%clk 0:02:34.6]} 17. Kh2 {[%clk 0:01:19.5]} 17... Ra3 {[%clk 0:02:21.6]} 18.
Qb2 {[%clk 0:01:08.2]} 18... Rfa8 {[%clk 0:02:10.6]} 19. bxc6 {[%clk 0:01:04]}
19... bxc6 {[%clk 0:02:11.5]} 20. Qb7 {[%clk 0:01:03.7]} 20... Qxb7 {[%clk
0:02:03.9]} 21. Rxb7 {[%clk 0:01:04.6]} 21... R3a6 {[%clk 0:02:04.7]} 22. Nd5
{[%clk 0:00:51.2]} 22... cxd5 {[%clk 0:01:48.6]} 23. cxd5 {[%clk 0:00:52.1]}
23... Bf7 {[%clk 0:01:38.1]} 24. Rxd7 {[%clk 0:00:50.6]} 24... R6a7 {[%clk
0:01:34.9]} 25. Rcc7 {[%clk 0:00:49.1]} 25... Rxc7 {[%clk 0:01:34.8]} 26. Rxc7
{[%clk 0:00:50]} 26... Kf8 {[%clk 0:01:35.4]} 27. Rc2 {[%clk 0:00:35.4]} 27...
g6 {[%clk 0:01:30.7]} 28. e4 {[%clk 0:00:33.9]} 28... Kg7 {[%clk 0:01:29.5]} 29.
h4 {[%clk 0:00:17.5]} 29... Ra3 {[%clk 0:01:22.2]} 30. Nc3 {[%clk 0:00:15.7]}
30... Rb3 {[%clk 0:01:20.2]} 31. Bh3 {[%clk 0:00:15.2]} 31... Kf6 {[%clk
0:01:12.6]} 32. Kg2 {[%clk 0:00:15.4]} 32... Bd8 {[%clk 0:01:11.4]} 33. Kf1
{[%clk 0:00:05.8]} 33... Ba5 {[%clk 0:01:10.7]} 34. Nd1 {[%clk 0:00:04.8]} 34...
Rxd3 {[%clk 0:01:09.9]} 35. Ke2 {[%clk 0:00:05.5]} 35... Rd4 {[%clk 0:01:08.7]}
36. exf5 {[%clk 0:00:03.4]} 36... gxf5 {[%clk 0:01:09.6]} 37. Ne3 {[%clk
0:00:03.8]} 37... Bh5+ {[%clk 0:01:07.8]} 38. f3 {[%clk 0:00:03.6]} 38... e4
{[%clk 0:01:00.5]} 39. g4 {[%clk 0:00:02.3]} 39... exf3+ {[%clk 0:00:58.9]} 40.
Kxf3 {[%clk 0:00:03.2]} 40... fxg4+ {[%clk 0:00:59.1]} 41. Bxg4 {[%clk
0:00:04.1]} 41... Bg6 {[%clk 0:00:51.9]} 42. Rc6 {[%clk 0:00:04]} 42... Bb4
{[%clk 0:00:50.9]} 43. h5 {[%clk 0:00:02.2]} 43... Be4+ {[%clk 0:00:50.8]} 44.
Kf2 {[%clk 0:00:01.5]} 44... Bc5 {[%clk 0:00:51.1]} 45. Be6 {[%clk 0:00:01.3]}
45... Rd2+ {[%clk 0:00:50.8]} 0-1

[Event "*** Titled Tuesday Blitz"]
[Site "Chess.com"]
[Date "2020.05.05"]
[Round "5"]
[White "51616516516"]
[Black "Djager97"]
[Result "0-1"]
[WhiteElo "2292"]
[BlackElo "2473"]
[TimeControl "180+1"]
[EndTime "10:57:26 PDT"]
[Termination "Djager97 won on time"]

1. d4 {[%clk 0:03:00.9]} 1... d5 {[%clk 0:02:59.9]} 2. c4 {[%clk 0:02:59.5]}
2... e6 {[%clk 0:03:00.4]} 3. Nc3 {[%clk 0:02:58.2]} 3... c6 {[%clk 0:03:00.6]}
4. e4 {[%clk 0:02:52.1]} 4... Bb4 {[%clk 0:02:59.6]} 5. cxd5 {[%clk 0:02:43.4]}
5... exd5 {[%clk 0:02:58.6]} 6. e5 {[%clk 0:02:43.4]} 6... Ne7 {[%clk
0:02:58.4]} 7. Bd3 {[%clk 0:02:41.2]} 7... c5 {[%clk 0:02:57.7]} 8. Nf3 {[%clk
0:02:37]} 8... Nbc6 {[%clk 0:02:57.5]} 9. O-O {[%clk 0:02:34.6]} 9... cxd4
{[%clk 0:02:50.4]} 10. Nb5 {[%clk 0:02:34.1]} 10... O-O {[%clk 0:02:49.5]} 11.
Nbxd4 {[%clk 0:02:32.9]} 11... Bc5 {[%clk 0:02:22.6]} 12. Bxh7+ {[%clk
0:02:14.9]} 12... Kxh7 {[%clk 0:02:19.1]} 13. Ng5+ {[%clk 0:02:02]} 13... Kg6
{[%clk 0:01:39.8]} 14. Qc2+ {[%clk 0:02:00.7]} 14... Nf5 {[%clk 0:01:22.7]} 15.
Nxf5 {[%clk 0:02:00.3]} 15... Bxf5 {[%clk 0:01:23.3]} 16. Qxc5 {[%clk
0:01:57.3]} 16... Rc8 {[%clk 0:01:06.8]} 17. Qe3 {[%clk 0:01:46.3]} 17... f6
{[%clk 0:00:48]} 18. exf6 {[%clk 0:01:39.9]} 18... gxf6 {[%clk 0:00:43.5]} 19.
Nf3 {[%clk 0:01:28.8]} 19... Kf7 {[%clk 0:00:43.5]} 20. Nh4 {[%clk 0:01:23.7]}
20... Be4 {[%clk 0:00:42.6]} 21. f3 {[%clk 0:00:54.9]} 21... Bh7 {[%clk
0:00:40.4]} 22. Qh6 {[%clk 0:00:53.1]} 22... Kg8 {[%clk 0:00:40.4]} 23. Bf4
{[%clk 0:00:49.4]} 23... Rf7 {[%clk 0:00:33.3]} 24. Rfe1 {[%clk 0:00:45.6]}
24... Qf8 {[%clk 0:00:32.8]} 25. Qh5 {[%clk 0:00:41.7]} 25... d4 {[%clk
0:00:24.5]} 26. Nf5 {[%clk 0:00:28.7]} 26... Bxf5 {[%clk 0:00:24.3]} 27. Qxf5
{[%clk 0:00:29.6]} 27... Rd8 {[%clk 0:00:25.2]} 28. Rad1 {[%clk 0:00:23.1]}
28... Qg7 {[%clk 0:00:20.5]} 29. Re4 {[%clk 0:00:18.7]} 29... Qh7 {[%clk
0:00:19.1]} 30. Qg4+ {[%clk 0:00:16.1]} 30... Rg7 {[%clk 0:00:18.6]} 31. Qe6+
{[%clk 0:00:16.1]} 31... Rf7 {[%clk 0:00:16.2]} 32. Bg3 {[%clk 0:00:16.5]} 32...
Kf8 {[%clk 0:00:11.6]} 33. Rh4 {[%clk 0:00:15]} 33... Qc2 {[%clk 0:00:10.5]} 34.
Rh8+ {[%clk 0:00:11.3]} 34... Kg7 {[%clk 0:00:10.5]} 35. Qg4+ {[%clk 0:00:05.7]}
35... Kxh8 {[%clk 0:00:09.9]} 36. Re1 {[%clk 0:00:02]} 36... d3 {[%clk
0:00:07.1]} 37. Qh5+ {[%clk 0:00:02.1]} 37... Rh7 {[%clk 0:00:07]} 38. Qf7
{[%clk 0:00:01.7]} 38... Rxf7 {[%clk 0:00:06.4]} 0-1

[Event "*** Titled Tuesday Blitz"]
[Site "Chess.com"]
[Date "2020.05.05"]
[Round "5"]
[White "Gulkov_Igor"]
[Black "Harry_Rakkel"]
[Result "0-1"]
[WhiteElo "2401"]
[BlackElo "2632"]
[TimeControl "180+1"]
[EndTime "10:57:27 PDT"]
[Termination "Harry_Rakkel won by resignation"]

1. Nf3 {[%clk 0:03:00.9]} 1... d5 {[%clk 0:02:57.9]} 2. d4 {[%clk 0:03:00.4]}
2... Nf6 {[%clk 0:02:57.5]} 3. c4 {[%clk 0:03:00.5]} 3... e6 {[%clk 0:02:57.3]}
4. Nc3 {[%clk 0:03:00.1]} 4... Nbd7 {[%clk 0:02:57.1]} 5. Bg5 {[%clk 0:02:59.9]}
5... Be7 {[%clk 0:02:56.1]} 6. e3 {[%clk 0:02:59.4]} 6... O-O {[%clk 0:02:55.8]}
7. Rc1 {[%clk 0:02:58.9]} 7... a6 {[%clk 0:02:53.9]} 8. cxd5 {[%clk 0:02:58.2]}
8... exd5 {[%clk 0:02:53.1]} 9. Bd3 {[%clk 0:02:57.7]} 9... Re8 {[%clk
0:02:52.4]} 10. Qc2 {[%clk 0:02:57.2]} 10... c6 {[%clk 0:02:51.9]} 11. O-O
{[%clk 0:02:56.7]} 11... Nf8 {[%clk 0:02:51.5]} 12. Rce1 {[%clk 0:02:56.5]}
12... g6 {[%clk 0:02:37.8]} 13. Ne5 {[%clk 0:02:54.7]} 13... Ng4 {[%clk
0:02:32.9]} 14. Bxe7 {[%clk 0:02:53.1]} 14... Qxe7 {[%clk 0:02:32.2]} 15. Nxg4
{[%clk 0:02:27.7]} 15... Bxg4 {[%clk 0:02:30.7]} 16. f4 {[%clk 0:02:27.7]} 16...
f6 {[%clk 0:02:17.3]} 17. f5 {[%clk 0:02:07.6]} 17... g5 {[%clk 0:02:12.3]} 18.
e4 {[%clk 0:01:49.5]} 18... Qb4 {[%clk 0:02:07.9]} 19. Qf2 {[%clk 0:01:48.4]}
19... dxe4 {[%clk 0:01:50.5]} 20. Nxe4 {[%clk 0:01:38.5]} 20... Nd7 {[%clk
0:01:47.9]} 21. Ng3 {[%clk 0:01:32.6]} 21... h5 {[%clk 0:01:36.2]} 22. a3 {[%clk
0:01:14.6]} 22... Qb3 {[%clk 0:01:29.1]} 23. Qd2 {[%clk 0:01:00.7]} 23... h4
{[%clk 0:01:04.4]} 24. Ne4 {[%clk 0:01:00.1]} 24... h3 {[%clk 0:01:01.4]} 25.
Nxg5 {[%clk 0:00:46.5]} 25... hxg2 {[%clk 0:00:55.6]} 26. Qxg2 {[%clk
0:00:31.7]} 26... Qxd3 {[%clk 0:00:25.9]} 27. Qxg4 {[%clk 0:00:31]} 27... fxg5
{[%clk 0:00:14.5]} 28. Qxg5+ {[%clk 0:00:30.3]} 28... Kf8 {[%clk 0:00:14.9]} 29.
Qh6+ {[%clk 0:00:28.7]} 29... Kf7 {[%clk 0:00:14.6]} 30. Qh7+ {[%clk 0:00:23.2]}
30... Kf8 {[%clk 0:00:14.3]} 31. Qh6+ {[%clk 0:00:19.1]} 31... Kf7 {[%clk
0:00:14]} 32. Qh7+ {[%clk 0:00:17.1]} 32... Kf8 {[%clk 0:00:13.8]} 33. Qxd7
{[%clk 0:00:17.1]} 33... Rad8 {[%clk 0:00:13.7]} 34. Qh7 {[%clk 0:00:14.7]}
34... Qxd4+ {[%clk 0:00:12.5]} 35. Kg2 {[%clk 0:00:14.2]} 35... Qd5+ {[%clk
0:00:11.7]} 36. Kg1 {[%clk 0:00:14.1]} 36... Qd4+ {[%clk 0:00:11.3]} 37. Kg2
{[%clk 0:00:14.6]} 37... Qxb2+ {[%clk 0:00:11.3]} 38. Kg1 {[%clk 0:00:13.4]}
38... Qg7+ {[%clk 0:00:11.6]} 39. Qxg7+ {[%clk 0:00:13]} 39... Kxg7 {[%clk
0:00:12.2]} 40. Kf2 {[%clk 0:00:12.5]} 40... Kf6 {[%clk 0:00:11.9]} 41. Rxe8
{[%clk 0:00:11.1]} 41... Rxe8 {[%clk 0:00:11.6]} 42. Kg3 {[%clk 0:00:11.8]}
42... Re3+ {[%clk 0:00:10.5]} 43. Kg4 {[%clk 0:00:11.6]} 43... Rxa3 {[%clk
0:00:10.4]} 44. Re1 {[%clk 0:00:11.2]} 44... Ra4+ {[%clk 0:00:10.2]} 0-1